bitfinex-derivatives/quotes_BNBF0:USTF0_20250630
["timestamp","ask_amount","ask_price","bid_price","bid_amount"]
[1751278589767,2.0999086,651.74,651.36,0.26706676]
[1751278589966,2.0999086,651.73,651.36,0.26706676]
[1751278590266,2.0999086,651.72,651.36,0.26706676]
[1751278590563,2.0999086,651.71,651.36,0.26706676]
[1751278590764,2.0999086,651.7,651.36,0.26706676]
[1751278590966,2.0999086,651.69,651.37,1.305]
[1751278591162,2.0999086,651.68,651.37,2.804]
[1751278591369,2.0999086,651.67,651.37,2.804]
[1751278591669,2.0999086,651.66,651.37,2.804]
[1751278591865,2.0999086,651.65,651.37,2.804]
[1751278592169,2.0999086,651.64,651.38,1.129]
[1751278592366,2.0999086,651.63,651.38,1.129]
[1751278592564,1.0028369,651.62,651.38,1.129]
[1751278592764,1.0028369,651.61,651.38,1.129]
[1751278592968,1.1410294,651.77,651.38,1.129]
[1751278592969,1.0028369,651.6,651.38,1.129]
[1751278593168,1.0028369,651.59,651.38,1.129]
[1751278593470,1.0028369,651.58,651.38,1.129]
[1751278593770,1.0028369,651.57,651.38,1.129]
[1751278593967,1.0028369,651.56,651.38,1.129]
[1751278594171,1.0028369,651.55,651.38,1.129]
[1751278594366,1.0028369,651.54,651.38,1.129]
[1751278594565,1.0028369,651.53,651.38,1.129]
[1751278594870,1.0028369,651.52,651.38,1.129]
[1751278595167,1.0028369,651.51,651.38,1.129]
[1751278595366,1.0028369,651.5,651.38,1.129]
[1751278595564,1.0028369,651.49,651.38,1.129]
[1751278595766,1.0028369,651.48,651.38,1.129]
[1751278595966,1.1410294,651.77,651.38,1.129]
[1751278596265,2.1003135,651.76,651.38,1.129]
[1751278596565,2.1003135,651.75,651.38,1.129]
[1751278596768,2.1003135,651.74,651.38,1.129]
[1751278596965,2.1003135,651.73,651.38,1.129]
[1751278597165,2.1003135,651.72,651.38,1.129]
[1751278597365,2.1003135,651.71,651.38,1.129]
[1751278597569,2.1003135,651.7,651.38,1.129]
[1751278597768,2.1003135,651.69,651.38,1.129]
[1751278597964,1.0029878,651.68,651.38,1.129]
[1751278598164,2.1003135,651.67,651.38,1.129]
[1751278598370,2.1003855,651.66,651.38,1.129]
[1751278598571,2.1003855,651.65,651.39,1.766]
[1751278598767,2.1003855,651.64,651.39,1.766]
[1751278599067,2.1003855,651.63,651.39,1.766]
[1751278599267,2.1003855,651.62,651.39,1.766]
[1751278599470,2.1003855,651.61,651.39,1.766]
[1751278599769,2.1003855,651.6,651.39,1.766]
[1751278599966,1.0030598,651.59,651.39,1.766]
[1751278600270,1.0030598,651.58,651.39,1.766]
[1751278600468,1.0030598,651.57,651.39,1.766]
[1751278600671,1.0030598,651.56,651.39,1.766]
[1751278600972,1.0030598,651.55,651.39,1.766]
[1751278601170,1.0030598,651.54,651.39,1.766]
[1751278601370,1.0030598,651.53,651.39,1.766]
[1751278601571,1.0030598,651.52,651.39,1.766]
[1751278601769,1.0030598,651.51,651.39,1.766]
[1751278601974,1.0030598,651.5,651.4,1.496]
[1751278602270,1.0030598,651.49,651.4,1.496]
[1751278602474,1.1388512,651.74,651.4,1.496]
[1751278602674,2.1003752,651.73,651.4,1.496]
[1751278602869,2.1003752,651.72,651.4,1.496]
[1751278603075,2.1003752,651.71,651.4,1.496]
[1751278603369,2.1003752,651.7,651.4,1.496]
[1751278603575,2.1003752,651.69,651.4,1.496]
[1751278603870,2.1003752,651.68,651.4,1.496]
[1751278604069,2.1003752,651.67,651.4,1.496]
[1751278604269,2.1003752,651.66,651.4,1.496]
[1751278604572,2.1003752,651.65,651.4,1.496]
[1751278604772,2.1003752,651.64,651.4,1.496]
[1751278604971,2.1003752,651.63,651.4,1.496]
[1751278605271,1.0028398,651.62,651.4,1.496]
[1751278605471,1.0028398,651.61,651.4,1.496]
[1751278605672,1.0028398,651.6,651.4,1.496]
[1751278605871,1.0028398,651.59,651.4,1.496]
[1751278606070,1.0028398,651.58,651.4,1.496]
[1751278606272,1.0028398,651.57,651.4,1.496]
[1751278606473,1.0028398,651.56,651.4,1.496]
[1751278606671,1.0028398,651.55,651.4,1.496]
[1751278606874,1.0028398,651.54,651.4,1.496]
[1751278607071,1.0028398,651.53,651.4,1.496]
[1751278607371,1.0028398,651.52,651.4,1.496]
[1751278607572,1.0028398,651.51,651.4,1.496]
[1751278607772,1.3411629,651.8,651.4,1.496]
[1751278608074,2.1002558,651.79,651.41,1.128]
[1751278608274,2.1002558,651.78,651.41,1.128]
[1751278608474,2.1002558,651.77,651.41,1.128]
[1751278608678,2.1002558,651.76,651.41,1.128]
[1751278608880,2.1002558,651.75,651.41,1.128]
[1751278609177,2.1002558,651.74,651.41,1.128]
[1751278609380,2.1002558,651.73,651.41,1.128]
[1751278609574,2.1002558,651.72,651.41,1.128]
[1751278609775,2.1002558,651.71,651.41,1.128]
[1751278609975,2.1002558,651.7,651.41,1.128]
[1751278610180,2.1002558,651.69,651.41,1.128]
[1751278610380,2.1002558,651.68,651.41,1.128]
[1751278610579,2.1002558,651.67,651.41,1.128]
[1751278610781,2.1002558,651.66,651.41,1.128]
[1751278610980,2.1002558,651.65,651.41,1.128]
[1751278611180,2.1002558,651.64,651.41,1.128]
[1751278611378,2.1002558,651.63,651.41,1.128]
[1751278611681,2.1002558,651.62,651.41,1.128]
[1751278611881,2.1002558,651.61,651.41,1.128]
[1751278612082,2.1002558,651.6,651.41,1.128]
[1751278612278,1.1388512,651.76,651.41,1.128]
[1751278612279,2.1002558,651.59,651.41,1.128]
[1751278612484,2.1002558,651.58,651.41,1.128]
[1751278612686,1.0027742,651.57,651.41,1.128]
[1751278612879,1.0027742,651.56,651.41,1.128]
[1751278613085,1.0027742,651.55,651.41,1.128]
[1751278613285,1.0027742,651.54,651.41,1.128]
[1751278613487,1.0027742,651.53,651.41,1.128]
[1751278613792,1.0027742,651.52,651.41,1.128]
[1751278613994,1.0027742,651.51,651.41,1.128]
[1751278614191,1.0027742,651.5,651.41,1.128]
[1751278614387,1.0027742,651.49,651.41,1.128]
[1751278614586,1.0027742,651.48,651.41,1.128]
[1751278614890,1.0027742,651.47,651.41,1.128]
[1751278615090,1.1388512,651.73,651.41,1.128]
[1751278615287,1.1388512,651.69,651.41,1.128]
[1751278615488,2.1001943,651.68,651.41,1.128]
[1751278615689,2.1001943,651.67,651.41,1.128]
[1751278615890,2.1001943,651.66,651.41,1.128]
[1751278616089,2.1001943,651.65,651.41,1.128]
[1751278616289,2.1001943,651.64,651.41,1.128]
[1751278616589,2.1001943,651.63,651.41,1.128]
[1751278616792,2.1001943,651.62,651.42,1.28]
[1751278616987,2.1001943,651.61,651.42,1.28]
[1751278617187,2.1001943,651.6,651.42,1.28]
[1751278617388,2.1001943,651.59,651.42,1.28]
[1751278617590,2.1001943,651.58,651.42,1.28]
[1751278617795,2.1001943,651.57,651.42,1.28]
[1751278618094,2.1001943,651.56,651.42,1.28]
[1751278618391,1.1388512,651.69,651.42,1.28]
[1751278618392,1.0026862,651.55,651.42,1.28]
[1751278618596,1.0026862,651.54,651.42,1.28]
[1751278618795,1.0026862,651.53,651.42,1.28]
[1751278618992,1.0026862,651.52,651.42,1.28]
[1751278619196,1.0026862,651.51,651.42,1.28]
[1751278619395,1.0026862,651.5,651.42,1.28]
[1751278619694,1.0026862,651.49,651.42,1.28]
[1751278619894,1.0026862,651.48,651.42,1.28]
[1751278620098,1.0026862,651.47,651.42,1.28]
[1751278620300,1.0026862,651.46,651.42,1.28]
[1751278620495,1.0026862,651.45,651.42,1.28]
[1751278620702,1.0026862,651.44,651.42,1.28]
[1751278620899,3.8123757,652.5,651.42,1.28]
[1751278620900,1.1388512,651.69,651.42,1.28]
[1751278621096,2.1007194,651.68,651.42,1.28]
[1751278621399,2.1007194,651.67,651.42,1.28]
[1751278621599,2.1007194,651.66,651.42,1.28]
[1751278621795,2.1007194,651.65,651.42,1.28]
[1751278622000,2.1007194,651.64,651.42,1.28]
[1751278622301,2.1007194,651.63,651.43,2.151]
[1751278622600,2.1007194,651.62,651.43,2.151]
[1751278622796,2.1007194,651.61,651.43,2.151]
[1751278623002,2.1007194,651.6,651.43,2.151]
[1751278623296,2.1007194,651.59,651.43,2.151]
[1751278623500,2.1007194,651.58,651.43,2.151]
[1751278623700,2.1007194,651.57,651.43,2.151]
[1751278624000,2.1007194,651.56,651.43,2.151]
[1751278624198,2.1007194,651.55,651.43,2.151]
[1751278624401,1.0029358,651.54,651.43,2.151]
[1751278624598,1.0029358,651.53,651.43,2.151]
[1751278624800,1.0029358,651.52,651.43,2.151]
[1751278624997,1.0029358,651.51,651.43,2.151]
[1751278625301,1.0029358,651.5,651.43,2.151]
[1751278625501,1.0029358,651.49,651.43,2.151]
[1751278625797,1.0029358,651.48,651.43,2.151]
[1751278626002,1.0029358,651.47,651.43,2.151]
[1751278626301,1.0029358,651.46,651.43,2.151]
[1751278626502,1.0029358,651.45,651.43,2.151]
[1751278626698,1.0029358,651.44,651.43,2.151]
[1751278641607,1.0039892,651.44,651.43,2.151]
[1751278652315,1.0039892,651.44,651.39,1.271]
[1751278652512,1.0039892,651.43,651.39,1.271]
[1751278652713,1.0039892,651.42,651.39,1.271]
[1751278652911,1.0039892,651.41,651.39,1.271]
[1751278653116,1.0039892,651.4,651.39,1.271]
[1751278654815,1.0039892,651.4,651.38,1.081]
[1751278655015,1.0039892,651.39,651.38,1.081]
[1751278658922,1.0039892,651.39,651.34,1.421]
[1751278659220,1.0039892,651.38,651.34,1.421]
[1751278659420,1.0039892,651.37,651.34,1.421]
[1751278676636,1.0039892,651.37,651.33,1.129]
[1751278686546,1.0039892,651.37,651.32,1.476]
[1751278700160,1.0039892,651.37,651.27,4.313]
[1751278703959,1.0039892,651.37,651.33,1.577]
[1751278722270,1.3452171,651.66,651.33,1.577]
[1751278722467,3.452895,651.65,651.33,1.577]
[1751278722670,3.452895,651.64,651.27,2.994]
[1751278722870,3.452895,651.63,651.27,2.994]
[1751278723067,2.1076779,651.62,651.27,2.994]
[1751278723271,2.1076779,651.61,651.27,2.994]
[1751278723571,2.1076779,651.6,651.27,2.994]
[1751278723771,2.1076779,651.59,651.27,2.994]
[1751278724071,2.1076779,651.58,651.27,2.994]
[1751278724266,2.1076779,651.57,651.27,2.994]
[1751278724471,2.1076779,651.56,651.37,1.236]
[1751278724768,1.1408087,651.73,651.37,1.236]
[1751278724769,2.1076779,651.55,651.37,1.236]
[1751278724970,2.1076779,651.54,651.37,1.236]
[1751278725170,2.1076779,651.53,651.37,1.236]
[1751278725472,2.1076779,651.52,651.37,1.236]
[1751278725772,2.1076779,651.51,651.37,1.236]
[1751278726068,2.1076779,651.5,651.38,1.683]
[1751278726267,2.1076779,651.49,651.38,1.683]
[1751278726472,2.1076779,651.48,651.38,1.683]
[1751278726665,2.1076779,651.47,651.38,1.683]
[1751278726870,1.0070758,651.46,651.38,1.683]
[1751278727070,1.0070758,651.45,651.38,1.683]
[1751278727271,1.0070758,651.44,651.38,1.683]
[1751278727468,1.0070758,651.43,651.38,1.683]
[1751278727770,1.0070758,651.42,651.38,1.683]
[1751278727969,1.0070758,651.41,651.38,1.683]
[1751278728168,1.0070758,651.4,651.38,1.683]
[1751278728372,1.0070758,651.39,651.38,1.683]
[1751278729173,1.345301,651.64,651.38,1.683]
[1751278729472,3.4526051,651.63,651.38,1.683]
[1751278729672,2.1073041,651.62,651.38,1.683]
[1751278729869,2.1073041,651.61,651.39,0.631]
[1751278730067,2.1073041,651.6,651.39,0.631]
[1751278730270,2.1073041,651.59,651.39,0.631]
[1751278730469,2.1073041,651.58,651.39,0.631]
[1751278730668,2.1073041,651.57,651.39,0.631]
[1751278730970,2.1073041,651.56,651.39,0.631]
[1751278731168,2.1073041,651.55,651.39,0.631]
[1751278731374,2.1073041,651.54,651.39,0.631]
[1751278731574,2.1073041,651.53,651.39,0.631]
[1751278731869,2.1073041,651.52,651.39,0.631]
[1751278732176,2.1073041,651.51,651.39,0.631]
[1751278732471,2.1073041,651.5,651.4,1.065]
[1751278732674,2.1073041,651.49,651.4,1.065]
[1751278732874,2.1073041,651.48,651.4,1.065]
[1751278733174,2.1073041,651.47,651.4,1.065]
[1751278733474,1.0066103,651.46,651.4,1.065]
[1751278733670,1.0066103,651.45,651.4,1.065]
[1751278733873,1.0066103,651.44,651.4,1.065]
[1751278734070,1.0066103,651.43,651.4,1.065]
[1751278734271,1.34551321,651.72,651.4,1.065]
[1751278734470,1.1408087,651.73,651.4,1.065]
[1751278734471,2.10717762,651.71,651.4,1.065]
[1751278734671,2.10717762,651.7,651.4,1.065]
[1751278734874,1.1408087,651.74,651.4,1.065]
[1751278734875,2.10717762,651.69,651.4,1.065]
[1751278735074,1.00639047,651.68,651.4,1.065]
[1751278735372,1.00639047,651.67,651.4,1.065]
[1751278735574,1.00639047,651.66,651.4,1.065]
[1751278735774,1.00639047,651.65,651.4,1.065]
[1751278735976,1.00639047,651.64,651.4,1.065]
[1751278736174,1.00639047,651.63,651.4,1.065]
[1751278736373,1.00639047,651.62,651.4,1.065]
[1751278736572,1.00639047,651.61,651.4,1.065]
[1751278736778,1.00639047,651.6,651.4,1.065]
[1751278736978,1.00639047,651.59,651.4,1.065]
[1751278737173,1.00639047,651.58,651.4,1.065]
[1751278737477,1.00639047,651.57,651.4,1.065]
[1751278737676,1.00639047,651.56,651.4,1.065]
[1751278737877,1.00639047,651.55,651.4,1.065]
[1751278738076,1.00639047,651.54,651.4,1.065]
[1751278738274,1.00639047,651.53,651.4,1.065]
[1751278738476,1.00639047,651.52,651.4,1.065]
[1751278738672,1.00639047,651.51,651.4,1.065]
[1751278738976,1.00639047,651.5,651.4,1.065]
[1751278739174,1.00639047,651.49,651.4,1.065]
[1751278739377,1.00639047,651.48,651.4,1.065]
[1751278739575,1.00639047,651.47,651.4,1.065]
[1751278739779,1.00639047,651.46,651.4,1.065]
[1751278739975,1.00639047,651.45,651.4,1.065]
[1751278740179,1.00639047,651.44,651.4,1.065]
[1751278740481,1.1408087,651.75,651.41,1.249]
[1751278740674,1.0061364,651.74,651.41,1.249]
[1751278740975,1.0061364,651.73,651.41,1.249]
[1751278741181,1.0061364,651.72,651.41,1.249]
[1751278741475,1.0061364,651.71,651.41,1.249]
[1751278741681,1.0061364,651.7,651.41,1.249]
[1751278741980,1.0061364,651.69,651.41,1.249]
[1751278742182,1.0061364,651.68,651.41,1.249]
[1751278742477,1.0061364,651.67,651.42,1.069]
[1751278742675,1.0061364,651.66,651.42,1.069]
[1751278742876,1.0061364,651.65,651.42,1.069]
[1751278743079,1.0061364,651.64,651.42,1.069]
[1751278743281,1.0061364,651.63,651.43,1.057]
[1751278743482,1.0061364,651.62,651.43,1.057]
[1751278743679,1.0061364,651.61,651.43,1.057]
[1751278743982,1.0061364,651.6,651.43,1.057]
[1751278744283,1.0061364,651.59,651.43,1.057]
[1751278744483,1.0061364,651.58,651.43,1.057]
[1751278744684,1.0061364,651.57,651.43,1.057]
[1751278744883,1.0061364,651.56,651.43,1.057]
[1751278745079,1.0061364,651.55,651.43,1.057]
[1751278745379,1.1408087,651.91,651.43,1.057]
[1751278745578,2.1035979,651.9,651.43,1.057]
[1751278745779,2.1035979,651.89,651.43,1.057]
[1751278746083,2.1035979,651.88,651.43,1.057]
[1751278746285,2.1035979,651.87,651.43,1.057]
[1751278746585,2.1035979,651.86,651.43,1.057]
[1751278746784,2.1035979,651.85,651.43,1.057]
[1751278746984,2.1035979,651.84,651.43,1.057]
[1751278747283,2.1035979,651.83,651.43,1.057]
[1751278747479,2.1035979,651.82,651.43,1.057]
[1751278747680,1.0059215,651.81,651.43,1.057]
[1751278747981,1.0059215,651.8,651.43,1.057]
[1751278748180,1.0059215,651.79,651.43,1.057]
[1751278748380,1.0059215,651.78,651.43,1.057]
[1751278748580,1.0059215,651.77,651.43,1.057]
[1751278748782,1.0059215,651.76,651.43,1.057]
[1751278748985,1.0059215,651.75,651.43,1.057]
[1751278749182,1.0059215,651.74,651.43,1.057]
[1751278749383,1.0059215,651.73,651.43,1.057]
[1751278749583,1.0059215,651.72,651.43,1.057]
[1751278749784,1.0059215,651.71,651.43,1.057]
[1751278750085,1.0059215,651.7,651.43,1.057]
[1751278750289,1.0059215,651.69,651.43,1.057]
[1751278750487,1.0059215,651.68,651.43,1.057]
[1751278750788,1.3410526,651.93,651.43,1.057]
[1751278750983,2.10225695,651.92,651.43,1.057]
[1751278751187,2.10225695,651.91,651.43,1.057]
[1751278751388,2.10225695,651.9,651.43,1.057]
[1751278751588,2.10225695,651.89,651.43,1.057]
[1751278751784,2.10225695,651.88,651.44,1.649]
[1751278751989,2.10225695,651.87,651.44,1.649]
[1751278752289,2.10225695,651.86,651.44,1.649]
[1751278752589,2.10225695,651.85,651.44,1.649]
[1751278752786,2.10225695,651.84,651.44,1.649]
[1751278752989,2.10225695,651.83,651.44,1.649]
[1751278753185,2.10225695,651.82,651.44,1.649]
[1751278753393,2.10225695,651.81,651.44,1.649]
[1751278753589,2.10225695,651.8,651.44,1.649]
[1751278753888,2.10225695,651.79,651.44,1.649]
[1751278754086,2.10225695,651.78,651.44,1.649]
[1751278754288,2.10225695,651.77,651.44,1.649]
[1751278754489,2.10225695,651.76,651.44,1.649]
[1751278754690,1.0053041,651.75,651.44,1.649]
[1751278754987,1.0053041,651.74,651.44,1.649]
[1751278755186,1.0053041,651.73,651.44,1.649]
[1751278755492,1.0053041,651.72,651.44,1.649]
[1751278755690,1.0053041,651.71,651.44,1.649]
[1751278755991,1.0053041,651.7,651.44,1.649]
[1751278756289,1.0053041,651.69,651.44,1.649]
[1751278756484,1.0053041,651.68,651.44,1.649]
[1751278756691,1.0053041,651.67,651.44,1.649]
[1751278756986,1.1408087,651.88,651.45,1.626]
[1751278757185,2.10111653,651.87,651.45,1.626]
[1751278757389,2.10111653,651.86,651.45,1.626]
[1751278757589,2.10111653,651.85,651.45,1.626]
[1751278757785,2.10111653,651.84,651.45,1.626]
[1751278757984,1.1408087,651.88,651.45,1.626]
[1751278757985,2.10111653,651.83,651.45,1.626]
[1751278758187,2.10111653,651.82,651.45,1.626]
[1751278758387,1.00469644,651.81,651.45,1.626]
[1751278758590,1.00469644,651.8,651.45,1.626]
[1751278758793,2.10105813,651.79,651.45,1.626]
[1751278758991,1.00469644,651.78,651.45,1.626]
[1751278759191,1.1408087,651.88,651.46,1.064]
[1751278759192,1.00469644,651.77,651.46,1.064]
[1751278759487,2.1010283,651.76,651.46,1.064]
[1751278759690,1.00469644,651.75,651.46,1.064]
[1751278759891,1.00469644,651.74,651.46,1.064]
[1751278760091,1.00469644,651.73,651.46,1.064]
[1751278760287,1.00469644,651.72,651.46,1.064]
[1751278760492,1.00469644,651.71,651.47,1.592]
[1751278760693,1.00469644,651.7,651.47,1.592]
[1751278760893,1.1408087,651.87,651.47,1.592]
[1751278760894,1.00469644,651.69,651.47,1.592]
[1751278761192,1.00469644,651.68,651.47,1.592]
[1751278761393,1.00469644,651.67,651.47,1.592]
[1751278761593,1.1408087,651.87,651.47,1.592]
[1751278761794,2.10073608,651.86,651.47,1.592]
[1751278762089,2.10073608,651.85,651.47,1.592]
[1751278762293,2.10073608,651.84,651.47,1.592]
[1751278762491,2.10073608,651.83,651.47,1.592]
[1751278762695,2.10073608,651.82,651.48,0.631]
[1751278762889,2.10073608,651.81,651.48,0.631]
[1751278763091,2.10073608,651.8,651.48,0.631]
[1751278763290,2.10073608,651.79,651.48,0.631]
[1751278763493,2.10073608,651.78,651.48,0.631]
[1751278763790,2.10073608,651.77,651.48,0.631]
[1751278763990,2.10073608,651.76,651.48,0.631]
[1751278764291,1.00446356,651.75,651.48,0.631]
[1751278764591,1.00446356,651.74,651.48,0.631]
[1751278764793,1.00446356,651.73,651.48,0.631]
[1751278764990,1.00446356,651.72,651.48,0.631]
[1751278765190,1.00446356,651.71,651.48,0.631]
[1751278765493,1.00446356,651.7,651.48,0.631]
[1751278765689,1.1408087,651.91,651.48,0.631]
[1751278765690,1.00446356,651.69,651.48,0.631]
[1751278765893,1.00446356,651.68,651.49,1.422]
[1751278766096,1.00446356,651.67,651.49,1.422]
[1751278766293,1.00446356,651.66,651.49,1.422]
[1751278766494,1.00446356,651.65,651.49,1.422]
[1751278766795,1.1408087,651.93,651.49,1.422]
[1751278766996,2.1007859,651.92,651.49,1.422]
[1751278767293,2.1007859,651.91,651.49,1.422]
[1751278767491,2.1007859,651.9,651.49,1.422]
[1751278767795,2.1007859,651.89,651.49,1.422]
[1751278767996,2.1007859,651.88,651.49,1.422]
[1751278768295,2.1007859,651.87,651.49,1.422]
[1751278768496,2.1007859,651.86,651.49,1.422]
[1751278768796,2.1007859,651.85,651.49,1.422]
[1751278769096,2.1007859,651.84,651.49,1.422]
[1751278769295,1.1408087,651.93,651.49,1.422]
[1751278769296,2.1007859,651.83,651.49,1.422]
[1751278769492,2.1007859,651.82,651.49,1.422]
[1751278769696,2.1007859,651.81,651.49,1.422]
[1751278769896,2.1007859,651.8,651.49,1.422]
[1751278770092,2.1007859,651.79,651.49,1.422]
[1751278770293,2.1007859,651.78,651.49,1.422]
[1751278770491,1.0044718,651.77,651.49,1.422]
[1751278770692,1.0044718,651.76,651.49,1.422]
[1751278770901,1.0044718,651.75,651.49,1.422]
[1751278771094,1.0044718,651.74,651.49,1.422]
[1751278771297,1.0044718,651.73,651.49,1.422]
[1751278771494,1.0044718,651.72,651.49,1.422]
[1751278771798,1.0044718,651.71,651.49,1.422]
[1751278771999,1.0044718,651.7,651.49,1.422]
[1751278772201,1.0044718,651.69,651.49,1.422]
[1751278772401,1.0044718,651.68,651.49,1.422]
[1751278772603,1.0044718,651.67,651.49,1.422]
[1751278772802,1.0044718,651.66,651.49,1.422]
[1751278773002,1.0044718,651.65,651.49,1.422]
[1751278773301,1.0044718,651.64,651.49,1.422]
[1751278773498,1.1386314,651.92,651.49,1.422]
[1751278773707,2.1012476,651.91,651.49,1.422]
[1751278774003,2.1012476,651.9,651.5,1.09]
[1751278774199,2.1012476,651.89,651.5,1.09]
[1751278774401,2.1012476,651.88,651.5,1.09]
[1751278774700,2.1012476,651.87,651.5,1.09]
[1751278774899,2.1012476,651.86,651.5,1.09]
[1751278775102,2.1012476,651.85,651.5,1.09]
[1751278775296,2.1012476,651.84,651.5,1.09]
[1751278775499,2.1012476,651.83,651.5,1.09]
[1751278775699,2.1012476,651.82,651.5,1.09]
[1751278775899,2.1012476,651.81,651.5,1.09]
[1751278776103,2.1012476,651.8,651.5,1.09]
[1751278776303,2.1012476,651.79,651.5,1.09]
[1751278776599,2.1012476,651.78,651.5,1.09]
[1751278776898,1.0047317,651.77,651.5,1.09]
[1751278777105,1.0047317,651.76,651.5,1.09]
[1751278777404,1.0047317,651.75,651.5,1.09]
[1751278777700,1.0047317,651.74,651.5,1.09]
[1751278777899,1.0047317,651.73,651.5,1.09]
[1751278778101,1.0047317,651.72,651.5,1.09]
[1751278778406,1.0047317,651.71,651.5,1.09]
[1751278778607,1.0047317,651.7,651.5,1.09]
[1751278778903,1.1386314,651.85,651.5,1.09]
[1751278778904,1.0047317,651.69,651.5,1.09]
[1751278779104,1.0047317,651.68,651.5,1.09]
[1751278779404,1.0047317,651.67,651.5,1.09]
[1751278779602,1.0047317,651.66,651.5,1.09]
[1751278779806,1.0047317,651.65,651.5,1.09]
[1751278780004,1.0047317,651.64,651.5,1.09]
[1751278780206,1.0055057,651.63,651.5,1.09]
[1751278780402,1.0055057,651.62,651.5,1.09]
[1751278780604,1.1386314,651.88,651.5,1.09]
[1751278780809,2.102705,651.87,651.5,1.09]
[1751278781005,2.102705,651.86,651.5,1.09]
[1751278781208,2.102705,651.85,651.5,1.09]
[1751278781410,2.102705,651.84,651.5,1.09]
[1751278781610,2.102705,651.83,651.5,1.09]
[1751278781811,2.102705,651.82,651.51,1.446]
[1751278782008,2.102705,651.81,651.51,1.446]
[1751278782207,2.102705,651.8,651.51,1.446]
[1751278782411,2.102705,651.79,651.51,1.446]
[1751278782610,1.0055396,651.78,651.51,1.446]
[1751278782913,1.0055396,651.77,651.51,1.446]
[1751278783205,1.0055396,651.76,651.51,1.446]
[1751278783410,1.0055396,651.75,651.51,1.446]
[1751278783708,1.0055396,651.74,651.51,1.446]
[1751278783907,1.0055396,651.73,651.51,1.446]
[1751278784113,1.0055396,651.72,651.51,1.446]
[1751278784310,1.0055396,651.71,651.52,1.537]
[1751278784513,1.0055396,651.7,651.52,1.537]
[1751278784713,1.1386314,651.91,651.52,1.537]
[1751278784714,1.0055396,651.69,651.52,1.537]
[1751278784907,1.0055396,651.68,651.52,1.537]
[1751278785211,1.0055396,651.67,651.52,1.537]
[1751278785409,1.0055396,651.66,651.52,1.537]
[1751278785711,1.0055396,651.65,651.52,1.537]
[1751278786009,1.0055396,651.64,651.52,1.537]
[1751278786313,1.0055396,651.63,651.52,1.537]
[1751278786513,1.0055396,651.62,651.52,1.537]
[1751278786810,1.0055396,651.61,651.52,1.537]
[1751278787109,1.0055396,651.6,651.52,1.537]
[1751278787315,1.0055396,651.59,651.52,1.537]
[1751278787610,1.1386314,651.9,651.52,1.537]
[1751278787814,2.10417045,651.89,651.52,1.537]
[1751278788115,2.10417045,651.88,651.53,1.093]
[1751278788315,2.10417045,651.87,651.54,0.631]
[1751278788512,2.10417045,651.86,651.54,0.631]
[1751278788714,2.10417045,651.85,651.54,0.631]
[1751278788913,2.10417045,651.84,651.54,0.631]
[1751278789111,2.10417045,651.83,651.54,0.631]
[1751278789411,2.10417045,651.82,651.54,0.631]
[1751278789713,2.10417045,651.81,651.54,0.631]
[1751278789913,2.10417045,651.8,651.54,0.631]
[1751278790115,2.10417045,651.79,651.54,0.631]
[1751278790312,2.10417045,651.78,651.54,0.631]
[1751278790516,2.10417045,651.77,651.54,0.631]
[1751278790818,2.10417045,651.76,651.55,1.208]
[1751278791113,2.10417045,651.75,651.55,1.208]
[1751278791317,2.10417045,651.74,651.55,1.208]